Workbook

Sheet 汇总表
A1: 工程量清单
A2: 工程名称：贵州省都匀市第四届中国绿化博览会博览园项目星级厕所劳务工程
A3: 序号 | B3: 标段 | C3: 施工范围 | D3: 报价金额（元） | E3: 备注
A4: 1 | B4: 一标段 | C4: 9#、10#、11#
A5: 2 | B5: 二标段 | C5: 1#、5#、7#
B6: 合计：
C9: 报 价 单 位（公章）：
C11: 法定代表人或委托代理人（签字或盖章）：
C13: 日期： 年 月 日

Sheet 一标
A1: 工程量清单
A2: 工程名称：贵州省都匀市第四届中国绿化博览会博览园项目9#、10#、11#星级厕所劳务工程
A3: 序号 | B3: 项目名称 | C3: 工程内容 | D3: 单位 | E3: 数量 | F3: 综合单价（元） | G3: 合价（元） | H3: 备注
A4: 一 | B4: 基础、结构
A5: 1 | B5: 场地平整 | C5: 场地平整、压实、清杂。 | D5: m2 | E5: =(20*10)*2.8 -> 560.00
A6: 2 | B6: 挖基础 | C6: 人机配合挖沟槽土方、修整坑底、边坡等。 | D6: m3 | E6: =(295*0.3)*2.8 -> 247.80
A7: 3 | B7: 独立基商品砼垫层 | C7: 商品砼场内运输、振捣、浇筑等，包含混凝土震动器、混凝土振捣收光找平养护，含模板、支撑材料费及安装、拆卸、周转。 | D7: m3 | E7: =(2*2*0.1*14)*2.8 -> 15.68 | H7: 混凝土甲供
A8: 4 | B8: 主体结构 | C8: 梁、柱、板、屋面等商品混凝土浇筑，包含场内运输、振捣、浇筑等，包含混凝土震动器、混凝土振捣收光找平养护。 | D8: m3 | E8: =(7.6+40+69.7)*2.8 -> 328.44 | H8: 混凝土甲供
A9: 5 | B9: 结构木模板 | C9: 含模板、木方、对拉螺栓、加固钢管、三星卡等材料费及安装、拆卸、周转。 | D9: ㎡ | E9: =(386.3+255)*2.8 -> 1795.64 | H9: 包工包料
A10: 6 | B10: 结钢筋制作、安装（基础、梁、柱、板等） | C10: 包括钢筋场内运输、调直、折弯、制作、安装等，包含钢筋调直机、切断机等机械费用。 | D10: t | E10: 92.04 | H10: 钢筋甲供
A11: 7 | B11: 满堂脚手架 | C11: 脚手架租赁、搭设、拆除等工作。 | D11: ㎡ | E11: 462.00 | H11: 包工包料
A12: 8 | B12: 外墙脚手架 | C12: 脚手架租赁、搭设、拆除等工作，包含防护网及辅材。 | D12: ㎡ | E12: 1324.40 | H12: 包工包料
A13: 二 | B13: 地面
A14: 1 | B14: 回填土 | C14: 30m以内取土回填、分层夯实，30m以内取土。 | D14: m3 | E14: =(160*1)*2.8 -> 448.00
A15: 2 | B15: 地面混凝土垫层 | C15: 商品砼场内运输、振捣、浇筑等，包含混凝土震动器、混凝土振捣收光找平养护。 | D15: m3 | E15: =(160*0.1)*2.8 -> 44.80 | H15: 混凝土甲供
A16: 三 | B16: 二次结构
A17: 1 | B17: 加气块砼砌块 | C17: 200厚墙，砂浆调制，运砖，砌筑砖墙，内设2*Φ6@500拉结筋与柱相连 | D17: m3 | E17: 219.80 | H17: 材料甲供
A18: 2 | B18: 水泥砖砌块 | C18: 200厚墙，砂浆调制，运砖，砌筑砖墙，内设2*Φ6@500拉结筋与柱相连 | D18: m3 | E18: 56.00 | H18: 水泥砖甲供
A19: 3 | B19: 外墙防潮层 | C19: 砌体水泥砂浆防潮层 | D19: ㎡ | E19: 56.00 | H19: 材料甲供
A20: 4 | B20: 墙面水泥砂浆粉刷 | C20: 基层清理，调运砂浆，墙面水泥砂浆粉刷，满铺玻纤布，墙与柱、梁连接处300mm钢丝网加强 | D20: m2 | E20: =(78.5/0.2*2)*2.8 -> 2198.00 | H20: 材料甲供
A21: 5 | B21: 内墙里架子 | C21: 里架子租赁租赁、搭设、拆除等工作 | D21: m2 | E21: =(78.5/0.2)*2.8 -> 1099.00 | H21: 包工包料
A22: 6 | B22: 外墙散水 | C22: 碎石垫层、模板、混凝土浇筑、磨光 | D22: m2 | E22: =(60*0.6)*2.8 -> 100.80 | H22: 包工包料
A23: 四 | B23: 屋面
A24: 1 | B24: 轻质料找坡层 | C24: 最薄处30厚LC5.0轻集料混凝土2%找坡 | D24: ㎡ | E24: 638.40 | H24: 材料甲供
A25: 2 | B25: 水泥砂浆找平层 | C25: 20厚1:3水泥砂浆找平层 | D25: ㎡ | E25: 638.40 | H25: 材料甲供
A26: 3 | B26: 水泥砂浆保护层 | C26: 20厚1:3水泥砂浆找平层 | D26: ㎡ | E26: 638.40 | H26: 材料甲供
B27: 小计：
B30: 1、基础标高、控制点参照标高由招标人提供，乙方在垫层施工中负责按甲方交底要求施工并控制各垫层标高，垫层标高控制在2cm以内，经验收标高未达到要求的，由投标人自行组织整改，并承担整改费用。
B31: 2、所有甲供材料均未明确场内运输距离的，均按80m以内考虑，除备注甲供材料，其他所有材料由乙方提供
B32: 3、全费用单价是指完成一个规定清单项目所需的人工费、材料费、施工机具使用费、企业管理费、利润和完成该规定清单项目所需的措施费、规费和税金以及一定范围内的风险费用。分部分项分包工程项目的全部费用价格，应包括招标文件所确定的招标范围内的全部内容。全费用单价包含但不限于人工费（含人员加班费用）、甲供材下料、验收、保管、材料二次倒运费用、小型机具费用、耗材(切割片)费用、赶工措施费用、技术服务费（测量等）、通讯费、交通费、食宿费、劳保用品费、相关保险费用、企业管理费、利润、措施费、规费、税金及政策性文件规定费用等所有费用。
B33: 4、以上报价税金按9%报价，提供9%点税率的增值税专用发票。
D35: 报 价 单 位（公章）：
D37: 法定代表人或委托代理人（签字或盖章）：
D39: 日期： 年 月 日

Sheet 二标
A1: 工程量清单
A2: 工程名称：贵州省都匀市第四届中国绿化博览会博览园项目1#、5#、7#星级厕所劳务工程
A3: 序号 | B3: 项目名称 | C3: 工程内容 | D3: 单位 | E3: 数量 | F3: 综合单价（元） | G3: 合价（元） | H3: 备注
A4: 一 | B4: 基础、结构
A5: 1 | B5: 场地平整 | C5: 场地平整、压实、清杂。 | D5: m2 | E5: =(20*10)*2.35 -> 470.00
A6: 2 | B6: 挖基础 | C6: 人机配合挖沟槽土方、修整坑底、边坡等。 | D6: m3 | E6: =(295*0.3)*2.35 -> 207.98
A7: 3 | B7: 独立基商品砼垫层 | C7: 商品砼场内运输、振捣、浇筑等，包含混凝土震动器、混凝土振捣收光找平养护，含模板、支撑材料费及安装、拆卸、周转。 | D7: m3 | E7: =(2*2*0.1*14)*2.35 -> 13.16 | H7: 混凝土甲供
A8: 4 | B8: 主体结构 | C8: 基础、梁、柱、板、屋面等商品混凝土浇筑，包含场内运输、振捣、浇筑等，包含混凝土震动器、混凝土振捣收光找平养护。 | D8: m3 | E8: =(7.6+40+69.7)*2.35 -> 275.66 | H8: 混凝土甲供
A9: 5 | B9: 结构木模板 | C9: 含模板、木方、对拉螺栓、加固钢管、三星卡等材料费及安装、拆卸、周转。 | D9: ㎡ | E9: =(386.3+255)*2.35 -> 1507.06 | H9: 包工包料
A10: 6 | B10: 结钢筋制作、安装（基础、梁、柱、板等） | C10: 包括钢筋场内运输、调直、折弯、制作、安装等，包含钢筋调直机、切断机等机械费用。 | D10: t | E10: 77.24 | H10: 钢筋甲供
A11: 7 | B11: 满堂脚手架 | C11: 脚手架租赁、搭设、拆除等工作。 | D11: ㎡ | E11: 387.75 | H11: 包工包料
A12: 8 | B12: 外墙脚手架 | C12: 脚手架租赁、搭设、拆除等工作，包含防护网及辅材。 | D12: ㎡ | E12: 1111.55 | H12: 包工包料
A13: 二 | B13: 地面
A14: 1 | B14: 回填土 | C14: 30m以内取土回填、分层夯实，30m以内取土。 | D14: m3 | E14: =(160*1)*2.35 -> 376.00
A15: 2 | B15: 地面混凝土垫层 | C15: 商品砼场内运输、振捣、浇筑等，包含混凝土震动器、混凝土振捣收光找平养护。 | D15: m3 | E15: =(160*0.1)*2.35 -> 37.60 | H15: 混凝土甲供
A16: 三 | B16: 二次结构
A17: 1 | B17: 加气块砼砌块 | C17: 200厚墙，砂浆调制，运砖，砌筑砖墙，内设2*Φ6@500拉结筋与柱相连 | D17: m3 | E17: 184.48 | H17: 材料甲供
A18: 2 | B18: 水泥砖砌块 | C18: 200厚墙，砂浆调制，运砖，砌筑砖墙，内设2*Φ6@500拉结筋与柱相连 | D18: m3 | E18: 47.00 | H18: 水泥砖甲供
A19: 3 | B19: 外墙防潮层 | C19: 砌体水泥砂浆防潮层 | D19: ㎡ | E19: 47.00 | H19: 材料甲供
A20: 4 | B20: 墙面水泥砂浆粉刷 | C20: 基层清理，调运砂浆，墙面水泥砂浆粉刷，满铺玻纤布，墙与柱、梁连接处300mm钢丝网加强 | D20: m2 | E20: =(78.5/0.2*2)*2.35 -> 1845 | H20: 材料甲供
A21: 5 | B21: 内墙里架子 | C21: 里架子租赁租赁、搭设、拆除等工作 | D21: m2 | E21: =(78.5/0.2)*2.35 -> 922 | H21: 包工包料
A22: 6 | B22: 外墙散水 | C22: 碎石垫层、模板、混凝土浇筑、磨光 | D22: m2 | E22: =(60*0.6)*2.35 -> 85 | H22: 包工包料
A23: 四 | B23: 屋面
A24: 1 | B24: 轻质料找坡层 | C24: 最薄处30厚LC5.0轻集料混凝土2%找坡 | D24: ㎡ | E24: 535.80 | H24: 材料甲供
A25: 2 | B25: 水泥砂浆找平层 | C25: 20厚1:3水泥砂浆找平层 | D25: ㎡ | E25: 535.80 | H25: 材料甲供
A26: 3 | B26: 水泥砂浆保护层 | C26: 20厚1:3水泥砂浆找平层 | D26: ㎡ | E26: 535.8 | H26: 材料甲供
B27: 小计：
B30: 1、基础标高、控制点参照标高由招标人提供，乙方在垫层施工中负责按甲方交底要求施工并控制各垫层标高，垫层标高控制在2cm以内，经验收标高未达到要求的，由投标人自行组织整改，并承担整改费用。
B31: 2、所有甲供材料均未明确场内运输距离的，均按80m以内考虑，除备注甲供材料，其他所有材料由乙方提供
B32: 3、全费用单价是指完成一个规定清单项目所需的人工费、材料费、施工机具使用费、企业管理费、利润和完成该规定清单项目所需的措施费、规费和税金以及一定范围内的风险费用。分部分项分包工程项目的全部费用价格，应包括招标文件所确定的招标范围内的全部内容。全费用单价包含但不限于人工费（含人员加班费用）、甲供材下料、验收、保管、材料二次倒运费用、小型机具费用、耗材(切割片)费用、赶工措施费用、技术服务费（测量等）、通讯费、交通费、食宿费、劳保用品费、相关保险费用、企业管理费、利润、措施费、规费、税金及政策性文件规定费用等所有费用。
B33: 4、以上报价税金按9%报价，提供9%点税率的增值税专用发票。
D35: 报 价 单 位（公章）：
D37: 法定代表人或委托代理人（签字或盖章）：
D39: 日期： 年 月 日
